[Event "39th Muensterland Open 2022"]
[Site "Muenster"]
[Date "2022.10.03"]
[Round "4.4"]
[White "Quinones-Maletti, Julio Guillermo"]
[Black "Ollenberger, Roland"]
[Result "1-0"]
[ECO "C96"]
[WhiteElo "2020"]
[BlackElo "2256"]
[Annotator "TA"]
[PlyCount "99"]
[EventDate "2022.10.01"]
[EventType "swiss"]
[EventCountry "GER"]
[SourceTitle "playchess.com"]
[Source "ChessBase"]
[SourceQuality "1"]
[TimeControl "40/5400+30:1800+30"]

{[%evp 23,99,33,56,9,20,9,16,30,15,0,0,0,0,0,7,0,0,7,14,20,16,0,0,0,36,40,63,60,63,53,88,7,63,53,56,64,130,126,127,129,135,121,148,121,121,130,158,86,91,103,279,273,698,695,680,549,493,357,815,815,800,418,791,790,779,772,1212,805,12831,12826,12839,746,983,945,29994,29995,29995,5017]} 1. e4 {[%emt 0:00:27]} e5 {[%emt 0:00:22]} 2. Nf3 {[%emt 0:00:52]} Nc6 {[%emt 0:00:11]} 3. Bb5 {[%emt 0:00:26]} a6 {[%emt 0:00:21]} 4. Ba4 {[%emt 0:00:17]} Nf6 {[%emt 0:00:06]} 5. O-O {[%emt 0:00:11]} b5 {[%emt 0:00:16]} 6. Bb3 {[%emt 0:00:17]} Be7 {[%emt 0:00:05]} 7. Re1 {[%emt 0:01:04]} d6 {[%emt 0:01:08]} 8. c3 {[%emt 0:00:23]} O-O {[%emt 0:04:48]} 9. h3 {[%emt 0:00:06]} Na5 {[%emt 0:00:48]} 10. Bc2 {[%emt 0:02:40]} c5 {[%emt 0:00:31]} 11. d4 {[%emt 0:00:56]} cxd4 {[%emt 0:14:05]} 12. cxd4 {[%emt 0:00:41]} Nc6 {[%emt 0:00:21]} 13. d5 {[%emt 0:01:53] C96: Closed Ruy Lopez: Chigorin Defence: 11 d4, replies other than 11...Qc7.} (13. Be3 $14 {feels stronger.}) 13... Nb4 $11 {[%emt 0:01:04]} 14. Bb3 {[%emt 0:01:00]} a5 $1 {[%emt 0:00:14]} 15. a3 {[%emt 0:00:16] The position is equal.} Na6 {[%emt 0:00:08]} 16. Nbd2 {[%emt 0:07:43]} Nc5 {[%emt 0:08:17]} 17. Bc2 {[%emt 0:00:38]} Bd7 {[%emt 0:04:29]} 18. Nf1 {[%emt 0:04:37]} b4 {[%emt 0:12:01][%cal Ob4b3] [#]} 19. Nxe5 $146 {[%emt 0:16:45]} ({Predecessor:} 19. Ng3 Qb6 20. Bg5 b3 21. Bd3 Nxd3 22. Qxd3 a4 23. Qe3 Qxe3 24. Bxe3 Rfc8 25. Red1 {0-1 (47) Ralik,O (1529)-Garban,M (2031) Topolcany 2020}) 19... dxe5 {[%emt 0:01:02]} 20. d6 {[%emt 0:00:07]} Bc6 {[%emt 0:06:58]} 21. dxe7 {[%emt 0:00:13]} Qxe7 {[%emt 0:00:05]} 22. axb4 {[%emt 0:04:49]} axb4 {[%emt 0:00:26]} 23. Rxa8 {[%emt 0:00:29]} Bxa8 {[%emt 0:01:42]} 24. Ng3 {[%emt 0:02:44]} Rd8 {[%emt 0:00:45]} 25. Qf3 {[%emt 0:07:26]} Ne6 {[%emt 0:07:45] Against Bg5} 26. Nf5 $1 {[%emt 0:15:49]} Qc7 {[%emt 0:03:11] [#]} 27. Bb1 {[%emt 0:10:12]} (27. Nxg7 $1 $16 Kxg7 28. Bh6+ Kg8 29. Qxf6 Qxc2 30. Qh4) 27... Nd4 {[%emt 0:16:25]} (27... g6 $11) 28. Nxd4 $14 {[%emt 0:03:29]} Rxd4 {[%emt 0:01:23]} 29. Bg5 {[%emt 0:00:55]} Ne8 {[%emt 0:02:50]} (29... Qe7 $14) 30. Rc1 $16 {[%emt 0:05:32]} Rc4 {[%emt 0:06:23]} 31. Rxc4 $40 {[%emt 0:00:56][%mdl 128] White attacks with force.} Qxc4 {[%emt 0:00:04] [#]} 32. Qd3 $1 {[%emt 0:00:45]} Qc6 {[%emt 0:01:50]} 33. Qd8 {[%emt 0:03:32] Ba2 is the strong threat.} h6 {[%emt 0:00:27]} 34. Be3 {[%emt 0:01:18]} Kh7 {[%emt 0:00:18] [#]} 35. Qe7 {[%emt 0:00:39]} ({White should try} 35. Qa5 $1) 35... Qa4 {[%emt 0:04:46]} 36. Kh2 {[%emt 0:05:12] White has more active pieces.} ({Much weaker is} 36. Qxe5 $6 Qd1+ 37. Kh2 Qxb1 $11) 36... Nf6 $2 {[%emt 0:00:49] A mistake that costs the game.} (36... f6 $16) 37. Qxe5 $18 {[%emt 0:01:10] And now Qf5+ would win.} Qd1 $2 {[%emt 0:00:50]} (37... Qd7 38. f3 Bc6) 38. Qf5+ {[%emt 0:00:29]} Kg8 {[%emt 0:00:12]} 39. e5 {[%emt 0:01:32] Qc8+ would kill now.} Nd7 {[%emt 0:01:53]} 40. e6 {[%emt 0:01:14]} Qd6+ $2 {[%emt 0:00:05]} (40... Nf6 41. Bd3 Qb3) 41. Bf4 {[%emt 0:30:41] A strong pair of Bishops.} Qxe6 {[%emt 0:30:19]} 42. Qh7+ {[%emt 0:00:20]} Kf8 {[%emt 0:00:06]} 43. Qh8+ {[%emt 0:00:10]} Ke7 {[%emt 0:00:08]} 44. Qxa8 {[%emt 0:00:16]} g5 {[%emt 0:00:25]} 45. Bg3 {[%emt 0:00:00] aiming for Bc7.} h5 {[%emt 0:00:00]} 46. Bc7 {[%emt 0:00:00][%csl Gc7][%cal Ra8d8]} f6 {[%emt 0:00:00]} 47. Qd8+ {[%emt 0:00:00]} Kf7 {[%emt 0:00:00]} 48. Qh8 {[%emt 0:00:00] White wants to mate with Qh7+.} h4 {[%emt 0:00:00]} 49. Qh7+ {[%emt 0:00:00]} Kf8 {[%emt 0:00:00]} 50. Bf5 {[%emt 0:00:00] Weighted Error Value: White=0.28 (precise) /Black=0.59} (50. Bg6 $142 Qe5+ 51. f4 Qxf4+ 52. Bxf4 Ne5 53. Bxe5 fxe5 54. Qf7#) 1-0

[Event "39th Muensterland Open 2022"]
[Site "Muenster"]
[Date "2022.10.03"]
[Round "4.5"]
[White "Sandkamp, Ralph"]
[Black "Bungarten, Jona"]
[Result "0-1"]
[ECO "A08"]
[WhiteElo "2241"]
[BlackElo "2010"]
[Annotator "TA"]
[PlyCount "104"]
[EventDate "2022.10.01"]
[EventType "swiss"]
[EventCountry "GER"]
[SourceTitle "playchess.com"]
[Source "ChessBase"]
[SourceQuality "1"]
[TimeControl "40/5400+30:1800+30"]

{[%evp 9,104,17,80,80,83,87,139,127,133,68,68,64,79,73,112,106,141,76,173,162,156,94,176,193,223,225,221,222,237,227,207,0,0,0,0,-83,76,78,81,36,35,43,27,-37,-45,-47,-47,-286,-7,-51,-37,-59,-22,-22,-22,-22,0,-23,0,0,0,0,0,0,0,-329,-345,-343,-329,-316,0,0,0,-419,-404,-29939,-6835,-6098,-5181,-515,-441,-29971,-29972,-29985,-29986,-29983,-29972,-29974,-29972,-29971,-29972,-29973,-29974,-29974,-29973,-29961,-5427]} 1. Nf3 {[%emt 0:00:03] Bulletin} d5 {[%emt 0:00:33]} 2. g3 {[%emt 0:00:24]} Nf6 {[%emt 0:00:26]} 3. Bg2 {[%emt 0:00:20]} c5 {[%emt 0:00:20]} 4. O-O {[%emt 0:00:24]} b5 {[%emt 0:07:36]} 5. d4 {[%emt 0:05:14]} c4 {[%emt 0:01:02] [#]} (5... e6 $11 {keeps the balance.}) 6. b3 $146 {[%emt 0:00:14] A08: King's Indian Attack.} ({Predecessor:} 6. Ne5 Bb7 7. a4 a6 8. axb5 axb5 9. Rxa8 Bxa8 10. b3 Nbd7 11. Bf4 e6 12. Nc3 Nxe5 13. dxe5 {1-0 (26) Baumgartner,H-Roth,P Lienz 1981 EXT 1998 [Bulletin]}) 6... Bb7 {[%emt 0:00:36]} 7. Ne5 {[%emt 0:00:59]} Qb6 {[%emt 0:03:58]} (7... cxb3 $142 8. axb3 Nbd7) 8. Nc3 {[%emt 0:03:17][%cal Oe2e4] White is clearly better.} cxb3 {[%emt 0:02:19]} 9. cxb3 {[%emt 0:04:47]} (9. axb3 $16 {Threatens to win with Qd3.} e6 10. Qd3) 9... e6 $14 {[%emt 0:01:33]} 10. Qd3 {[%emt 0:02:23]} b4 {[%emt 0:08:17]} 11. Na4 {[%emt 0:00:44]} Qa5 {[%emt 0:00:31]} 12. Bd2 {[%emt 0:02:29]} Nbd7 {[%emt 0:04:38]} 13. f4 {[%emt 0:05:05]} (13. Nxd7 $142 Nxd7 14. Rfc1) 13... Ba6 {[%emt 0:06:22]} (13... Nxe5 $16 {was necessary.} 14. fxe5 Ne4) 14. Qe3 $18 {[%emt 0:01:09] aiming for f5.} Qb5 {[%emt 0:03:39]} 15. Bf3 {[%emt 0:03:42]} (15. f5 $142 {[%cal Oe5f7] Nxf7! is the strong threat.} Qxe2 16. Qxe2 Bxe2 17. Rfe1) 15... Bd6 {[%emt 0:04:47]} (15... Be7 $16 {was worth a try.}) 16. f5 {[%emt 0:05:01][%cal Oe5f7] And now Nxf7! would win.} O-O {[%emt 0:03:57]} 17. fxe6 {[%emt 0:00:24]} fxe6 {[%emt 0:00:08] [#]} 18. Nc4 {[%emt 0:11:55][%mdl 512]} Bxg3 {[%emt 0:02:11]} (18... Bc7 19. Qxe6+) 19. Qxe6+ {[%emt 0:02:25]} Kh8 {[%emt 0:00:07] Strongly threatening ...Rae8.} 20. Nd6 {[%emt 0:06:22] Prevents Rae8.} (20. hxg3 $18 Rae8 21. Qf5 dxc4 22. Qxb5 Bxb5 23. Bxb4) 20... Bxd6 $11 {[%emt 0:03:14]} 21. Qxd6 {[%emt 0:00:18]} Ne4 {[%emt 0:05:58]} 22. Qxb4 {[%emt 0:03:07]} (22. Bxe4 $11 dxe4 23. Nc5 Qxe2 24. Nxa6) 22... Nxd2 $2 {[%emt 0:00:14] Black is more active.} (22... Qc6 $1 $17 {and life is bright.} 23. Bxe4 dxe4) 23. Qxd2 $16 {[%emt 0:00:20]} Nf6 {[%emt 0:03:25]} 24. Qg5 {[%emt 0:03:34]} Qb4 {[%emt 0:01:55]} 25. Rad1 {[%emt 0:01:34]} Rae8 {[%emt 0:00:30][%cal Ba8e8,Be8e2,Be2a2,Ba2a1,Ba1c1,Bc1c3][%mdl 32]} 26. Nc5 {[%emt 0:01:15]} (26. Rf2 $11) 26... Bxe2 $15 {[%emt 0:03:50]} 27. Bxe2 {[%emt 0:04:14]} Rxe2 {[%emt 0:00:16]} 28. Qxd5 $2 {[%emt 0:01:24]} Rfe8 $2 {[%emt 0:01:22]} (28... Qb8 $19 {[%csl Ge2][%cal Rb8h2]} 29. Qh1 Rd8) 29. Qf3 {[%emt 0:02:28]} Rxa2 {[%emt 0:01:27]} (29... Qb8 30. Rf2 R2e3 31. Qf4 $11) 30. Rf2 {[%emt 0:01:48] Inhibits Ree2.} Re1+ {[%emt 0:05:36]} 31. Rxe1 {[%emt 0:00:35]} Qxe1+ {[%emt 0:00:15]} 32. Kg2 $1 {[%emt 0:00:43]} Ra1 {[%emt 0:02:05]} 33. Kh3 {[%emt 0:04:04][%cal Oc5e4]} h5 {[%emt 0:02:52]} (33... Qe8 $5 {[%cal Ra1g1]} 34. Ne4 Qe6+ 35. Qf5 Nxe4 36. Qxe6 Ng5+ 37. Kg2 Nxe6 $11) 34. Re2 {[%emt 0:02:36]} Qg1 {[%emt 0:05:54]} 35. Ne6 {[%emt 0:03:55]} Rc1 {[%emt 0:01:29][%cal Oc1c3] ( -> ...Rc3!)} 36. Rg2 {[%emt 0:07:04]} Qe1 {[%emt 0:00:31]} 37. Qa8+ $2 {[%emt 0:01:48][%mdl 8192]} (37. Re2 $11 {and White stays safe.} Rc3 38. Rxe1 Rxf3+ 39. Kh4) 37... Ng8 $19 {[%emt 0:00:07] The board is on fire.} 38. Qd5 {[%emt 0:01:21]} (38. Qe8 {is a self mate.} Rc3+ 39. Rg3 Rxg3+ 40. Kh4 Rg4+ 41. Kxh5 Qh4#) 38... Rc3+ {[%emt 0:01:20]} 39. Rg3 {[%emt 0:00:19] [#]} Qf1+ $2 {[%emt 0:03:02]} ({Don't blunder} 39... Nf6 $2 40. Qa8+ Ng8 41. Qd5 $19) ({Better is} 39... Rxg3+ $1 $19 40. hxg3 Nf6 41. Qa8+ Kh7) 40. Kh4 $11 {[%emt 0:00:25]} Qf6+ {[%emt 0:02:10]} 41. Qg5 $2 {[%emt 0:32:57][%mdl 8192]} (41. Kh3 $11 {and White is okay.} Qf1+ 42. Kh4 Qf6+ 43. Kh3 (43. Qg5 $2 Rxg3 44. Kxg3 Qxe6 $19) 43... Qf1+) 41... Rxg3 $19 {[%emt 0:30:21]} 42. hxg3 {[%emt 0:03:51]} (42. Kxg3 $19 Qxe6 43. Qxh5+ Nh6 44. Kf4) 42... Qxe6 {[%emt 0:00:11]} 43. Qxh5+ {[%emt 0:00:40]} Nh6 {[%emt 0:01:04]} 44. g4 {[%emt 0:03:05]} Kg8 {[%emt 0:01:55]} 45. d5 {[%emt 0:00:00]} (45. b4 $19) 45... Qe1+ {[%emt 0:00:00] Black mates.} 46. Kg5 {[%emt 0:00:00]} Qe5+ {[%emt 0:00:00]} 47. Kh4 {[%emt 0:00:00]} Qxh5+ {[%emt 0:00:00]} 48. gxh5 {[%emt 0:00:00]} Nf7 {[%emt 0:00:00]} 49. Kg4 {[%emt 0:00:00]} Nd6 {[%emt 0:00:00]} 50. b4 {[%emt 0:00:00]} Kf7 {[%emt 0:00:00]} 51. Kg5 {[%emt 0:00:00]} Ne4+ {[%emt 0:00:00]} 52. Kf5 {[%emt 0:00:00]} Nf6 {[%emt 0:00:00] What a bad dream for White.  Weighted Error Value: White=0.72/Black=0.37} (52... Ng3+ $142 53. Kg4 {[#]} Nxh5 $1 54. Kf5 Ke7 55. Ke5 Nf6 56. d6+ Kd7 57. Kd4 Kxd6 58. Kd3 Nd5 59. b5 Nc7 60. Ke3 Nxb5 61. Kf2 a5 62. Ke1 a4 63. Kd2 a3 64. Kc2 g5 65. Kc1 g4 66. Kd2 a2 67. Kd3 a1=Q 68. Ke4 Qe5+ 69. Kd3 g3 70. Kc4 Qc3+ 71. Kxb5 Qb3+ 72. Ka6 Kc6 73. Ka7 Qb7#) 0-1

[Event "39th Muensterland Open 2022"]
[Site "Muenster"]
[Date "2022.10.03"]
[Round "4.6"]
[White "Panjer, Sidney"]
[Black "Dordevic, Tom"]
[Result "1/2-1/2"]
[ECO "E05"]
[WhiteElo "2197"]
[BlackElo "1767"]
[Annotator "TA"]
[PlyCount "58"]
[EventDate "2022.10.01"]
[EventType "swiss"]
[EventCountry "GER"]
[SourceTitle "playchess.com"]
[Source "ChessBase"]
[SourceQuality "1"]
[TimeControl "40/5400+30:1800+30"]

{[%evp 18,58,27,0,54,43,85,72,127,90,92,0,0,-9,-9,-9,-9,-19,-8,-67,-60,-67,-67,-85,-62,-67,-67,-66,-64,-62,-64,-79,-79,-74,-64,-62,-44,-49,-39,-32,-38,-37,-20]} 1. Nf3 {[%emt 0:00:04]} Nf6 {[%emt 0:00:06]} 2. c4 {[%emt 0:00:03]} e6 {[%emt 0:00:07]} 3. g3 {[%emt 0:00:03]} d5 {[%emt 0:00:12]} 4. Bg2 {[%emt 0:00:08]} Be7 {[%emt 0:00:08]} 5. d4 {[%emt 0:00:04]} O-O {[%emt 0:00:09]} 6. O-O {[%emt 0:00:04]} dxc4 {[%emt 0:00:05]} 7. Qc2 {[%emt 0:00:05]} a6 {[%emt 0:00:08]} 8. a4 {[%emt 0:00:08]} Bd7 {[%emt 0:00:12]} 9. Rd1 {[%emt 0:01:33]} Bc6 {[%emt 0:00:27]} 10. Nc3 {[%emt 0:00:07][%mdl 1024] White has compensation. 10.Bg5 is the modern continuation.} Qc8 {[%emt 0:08:36] E05: Open Catalan: 5 Nf3 Be7.} (10... Bxf3 $11 11. Bxf3 Nc6) 11. e4 $14 {[%emt 0:02:32]} Rd8 {[%emt 0:00:48]} 12. Ne5 {[%emt 0:05:17] [#]} b6 $146 {[%emt 0:02:28]} ({Black should play} 12... Be8) ({Predecessor:} 12... Be8 13. Qe2 Nbd7 14. Nxc4 Nf8 15. Bg5 Rb8 16. a5 Nd5 17. Bxe7 Nxe7 18. d5 b5 19. axb6 cxb6 {1-0 (44) Li,X (2330)-Pratyusha,B (2265) Shaoxing 2019}) 13. d5 {[%emt 0:25:54] White is more active.} exd5 {[%emt 0:04:49]} 14. Nxc6 {[%emt 0:01:30]} ({White should try} 14. Nxd5 $16 Bxd5 15. exd5) 14... Nxc6 $11 {[%emt 0:00:06][%cal Bb8c6,Bc6e5,Be5d3][%mdl 32]} 15. Nxd5 {[%emt 0:08:56]} Nxd5 {[%emt 1:19:39]} 16. exd5 {[%emt 0:00:05]} Ne5 {[%emt 0:00:00]} 17. Bf4 {[%emt 0:06:30]} Bd6 {[%emt 0:00:00]} 18. Qc3 {[%emt 0:09:41]} (18. Bxe5 $11 Bxe5 19. Re1) 18... Nd3 $15 {[%emt 0:00:00]} 19. Bxd6 {[%emt 0:00:44]} cxd6 {[%emt 0:00:00]} 20. b3 {[%emt 0:07:11]} b5 {[%emt 0:00:00]} 21. axb5 {[%emt 0:03:45]} axb5 {[%emt 0:00:00] White must now prevent ...Qc5.} 22. Rxa8 {[%emt 0:00:15]} Qxa8 {[%emt 0:00:00]} 23. bxc4 {[%emt 0:00:34]} bxc4 {[%emt 0:00:00]} 24. Ra1 {[%emt 0:04:52] [#] Against Qa4} ({Don't blunder} 24. Qxc4 $2 Nb2 25. Qg4 Nxd1 26. Qxd1 Rb8 $19) 24... Qc8 {[%emt 0:00:00]} 25. Qd4 {[%emt 0:06:14]} Qf5 {[%emt 0:00:00]} 26. f4 {[%emt 0:05:48] Black is slightly better.} Qc8 {[%emt 0:00:00]} 27. Bf1 {[%emt 0:05:19]} h6 {[%emt 0:00:00]} 28. Bxd3 {[%emt 0:00:49]} cxd3 {[%emt 0:00:00]} 29. Qxd3 {[%emt 0:00:27]} Qc5+ {[%emt 0:00:00] Weighted Error Value: White=0.20 (precise) /Black=0.18 (very precise)} 1/2-1/2

[Event "39th Muensterland Open 2022"]
[Site "Muenster"]
[Date "2022.10.03"]
[Round "4.7"]
[White "Knudsen, Simon"]
[Black "Gasper, Joern"]
[Result "1-0"]
[ECO "C54"]
[WhiteElo "2250"]
[BlackElo "2057"]
[Annotator "TA"]
[PlyCount "115"]
[EventDate "2022.10.01"]
[EventType "swiss"]
[EventCountry "GER"]
[SourceTitle "playchess.com"]
[Source "ChessBase"]
[SourceQuality "1"]
[TimeControl "40/5400+30:1800+30"]

{[%evp 17,115,0,6,2,31,24,29,0,4,-11,-12,-15,0,-13,0,-5,0,-13,0,-13,-11,-12,0,-38,-20,-50,-10,-25,-22,-22,-19,-31,-27,-34,-32,-167,-167,-162,-51,-112,-108,-108,-116,-107,-71,-60,-32,-28,47,41,75,12,16,-18,13,-28,-41,-51,9,9,16,22,17,-110,-92,-177,-135,-131,-139,-148,-99,-108,-83,-79,0,10,56,43,38,7,89,55,46,64,159,69,566,573,652,683,557,548,662,642,564,498,595,552,29973,29977]} 1. e4 {[%emt 0:00:03]} e5 {[%emt 0:00:25]} 2. Nf3 {[%emt 0:00:07]} Nc6 {[%emt 0:00:04]} 3. Bc4 {[%emt 0:00:06]} Bc5 {[%emt 0:00:04]} 4. c3 {[%emt 0:00:05]} Nf6 {[%emt 0:00:04]} 5. d4 {[%emt 0:00:05]} exd4 {[%emt 0:00:05]} 6. e5 {[%emt 0:00:05]} d5 {[%emt 0:00:07]} 7. Bb5 {[%emt 0:00:06]} Ne4 {[%emt 0:00:07]} 8. cxd4 {[%emt 0:00:06]} Bb6 {[%emt 0:00:06]} 9. Nc3 {[%emt 0:00:08]} O-O {[%emt 0:00:22]} 10. Be3 {[%emt 0:02:46] C54: Giuoco Piano: 4 c3 Nf6, main lines with 5 d4 and 5 d3.} Ne7 {[%emt 0:01:58]} 11. Bd3 {[%emt 0:03:07]} f5 {[%emt 0:00:55]} 12. exf6 {[%emt 0:07:41] White has an edge.} Nxf6 {[%emt 0:01:15]} 13. Qc2 {[%emt 0:00:45]} Nc6 {[%emt 0:09:13]} 14. Bb5 {[%emt 0:15:38]} Ne7 {[%emt 0:08:25]} 15. O-O {[%emt 0:07:10] [#]} Bf5 $146 {[%emt 0:03:27]} ({Predecessor:} 15... c6 16. Bd3 Bc7 17. Ne5 Be6 18. f4 Rc8 19. Rae1 c5 20. Qe2 c4 21. Bb1 Bf5 22. g4 Bxb1 23. Rxb1 Ba5 {0-1 (38) Faerber,D (2097)-Koelle,T (2274) Playchess.com INT 2021}) 16. Bd3 {[%emt 0:02:02]} Qc8 {[%emt 0:12:31]} 17. a4 {[%emt 0:09:13]} a5 {[%emt 0:05:30]} 18. Rfe1 {[%emt 0:04:46]} Bxd3 {[%emt 0:03:18]} 19. Qxd3 {[%emt 0:00:01]} c6 {[%emt 0:04:48]} 20. Bg5 {[%emt 0:06:30]} Qf5 {[%emt 0:06:12]} 21. Qd2 {[%emt 0:02:05]} Rae8 {[%emt 0:00:59]} (21... Ng6 $5 {[%cal Rh7h6]}) 22. Re5 {[%emt 0:04:44]} Qd7 {[%emt 0:06:51]} 23. Rae1 {[%emt 0:00:14]} Bc7 {[%emt 0:35:14]} 24. R5e2 {[%emt 0:03:14]} Ng6 {[%emt 0:00:00]} 25. h3 {[%emt 0:07:49]} Rxe2 {[%emt 0:00:00]} 26. Rxe2 {[%emt 0:00:13]} (26. Qxe2 $15 Re8 27. Qd3) 26... Nh5 $1 $19 {[%emt 0:00:00][%cal Of8f3] Threatens to win with ...Rxf3!} 27. Ne5 {[%emt 0:02:37]} Qd6 {[%emt 0:00:00]} (27... Bxe5 $19 28. dxe5 Nhf4 29. Bxf4 Nxf4) 28. g3 {[%emt 0:02:14]} (28. Qc2 $1 $15) 28... Nxe5 $17 {[%emt 0:00:00]} 29. dxe5 {[%emt 0:01:32]} Qe6 {[%emt 0:00:00][%csl LRe5,LRh3]} 30. Kg2 {[%emt 0:12:21]} h6 {[%emt 0:00:00]} (30... Bxe5 $6 31. Qe3 h6 32. Qxe5 $11) 31. Be3 {[%emt 0:00:38]} Qg6 {[%emt 0:00:00]} (31... Qxe5 32. Bc5 Qg5 33. Qxg5 hxg5 34. Bxf8 Kxf8 35. Nb1 $16) 32. Qd4 {[%emt 0:02:42]} Rf5 {[%emt 0:00:00]} (32... Qf7 $1 $11) 33. Qg4 $14 {[%emt 0:00:24]} Qe6 {[%emt 0:02:51] [#]} 34. f4 {[%emt 0:01:41]} ({White should play} 34. Bxh6 $1 $16 {f4 is the strong threat.} d4 35. Ne4 Rxe5 36. Bd2) 34... g6 $1 $11 {[%emt 0:00:05]} 35. Qh4 {[%emt 0:01:29]} Rf7 {[%emt 0:01:11]} 36. Rf2 {[%emt 0:00:57]} Ng7 $1 {[%emt 0:00:52] And now ...Nf5 would win.} 37. g4 {[%emt 0:00:40] Against Nf5} (37. Qxh6 $2 Nf5 38. Qg5 Nxe3+ $19) 37... h5 {[%emt 0:01:12]} (37... g5 $1 $15 38. fxg5 (38. Qg3 $2 gxf4 39. Bxf4 Nh5 $19) 38... Qxe5 39. gxh6 Ne6 40. Rxf7 Kxf7 41. Qf2+ (41. h7 Qxe3 42. h8=Q Nf4+ 43. Kf1 Qd3+ 44. Ke1 Ng2+ 45. Kf2 Nxh4 $17) 41... Ke8) 38. Ne2 {[%emt 0:01:52]} d4 {[%emt 0:00:42]} 39. Nxd4 {[%emt 0:00:48]} Qd5+ {[%emt 0:00:05]} 40. Nf3 {[%emt 0:00:40]} (40. Rf3 $11 {keeps the balance.}) 40... Bd8 {[%emt 0:00:52][%mdl 1024] Black has strong compensation.} 41. Qg3 {[%emt 0:18:18]} (41. Rd2 $17 Qxf3+ 42. Kxf3 Bxh4 43. Ke4) 41... h4 $1 $19 {[%emt 0:00:09]} 42. Qh2 {[%emt 0:00:02]} Qe4 $1 {[%emt 0:04:42][%csl LRa4,LRe3]} 43. Rd2 {[%emt 0:00:59]} Ne6 {[%emt 0:03:15]} (43... Bg5 $142 $1 44. Qg1 Bxf4 45. Rd8+ Kh7 46. Bxf4 Ne6) 44. Qg1 $17 {[%emt 0:04:46] [#]} (44. Kf2 $2 Bb6 $1 45. Bxb6 Rxf4 46. Qxf4 Nxf4 47. Rd8+ Kg7 48. Rd7+ Kg8 49. Rd8+ Kg7 50. Rd7+ Kf8 51. Rd8+ Kg7 $19) 44... Be7 $1 {[%emt 0:03:06] Inhibits Rd6.} (44... Bb6 $6 45. Bxb6 Nxf4+ 46. Kh2 $11) 45. Qf2 {[%emt 0:00:58]} Nxf4+ {[%emt 0:02:44]} (45... Bb4 $17 46. Rd1 b6) 46. Bxf4 $11 {[%emt 0:01:30]} Qxf4 {[%emt 0:00:15]} (46... Rxf4 $11 47. Rd4 Qxd4 48. Qxd4 (48. Nxd4 $2 Rxf2+ 49. Kxf2 Bc5 $19) 48... Rxd4 49. Nxd4 Kf7) 47. Rd4 $1 $14 {[%emt 0:01:21]} Qc1 {[%emt 0:02:12]} 48. Qd2 {[%emt 0:01:56]} (48. e6 $5 {[%cal Re6f7]} Rf8 49. Qe2 $16 (49. Rd7 Bc5 $14)) 48... Qc5 {[%emt 0:09:09]} (48... Qxd2+ $1 $11 49. Rxd2 Rf4) 49. Qd3 {[%emt 0:00:42]} Kg7 {[%emt 0:01:38]} 50. Rd7 $36 {[%emt 0:00:55][%mdl 2048] White is pushing.} Qb4 {[%emt 0:02:16]} (50... b5 $1 $14) 51. Qd4 {[%emt 0:01:24] Really sharp! White is more active.} ({White should try} 51. e6 $16 Rf6 52. Qe2) 51... Qxd4 $4 {[%emt 0:04:52][%mdl 8192]} ({Better is} 51... Bc5 $14 52. Qxb4 Bxb4) 52. Nxd4 {[%emt 0:00:02][%mdl 4096] Endgame KRB-KRN} (52. Rxd4 Bc5 53. Re4 Be7 $14) 52... Bf8 {[%emt 0:01:50]} 53. Ne6+ {[%emt 0:02:40]} (53. e6 Re7 $16) 53... Kg8 {[%emt 0:00:19]} 54. Rd8 {[%emt 0:00:40]} b5 {[%emt 0:00:37]} 55. b3 {[%emt 0:00:51]} ({Less strong is} 55. Nxf8 Rxf8 56. Rd6 Kf7 $11) 55... bxa4 {[%emt 0:00:32]} 56. bxa4 {[%emt 0:00:02]} (56. Nxf8 $2 Rxf8 57. Rd3 (57. Rxf8+ $2 Kxf8 58. bxa4 Ke7 $19) 57... a3 $19) 56... c5 {[%emt 0:00:09]} 57. Nxc5 {[%emt 0:02:30] aiming for Ne6.} ({Not} 57. Nxf8 Rxf8 58. Rd6 Rc8 $11) 57... Rc7 {[%emt 0:00:50] [#]} 58. Rxf8+ $1 {[%emt 0:00:00][%mdl 512] A wild game.  Weighted Error Value: White=0.23 (precise) /Black=0.45} 1-0